Cogmind - Beta 16 @@@ ROGUE MODE // 2025.12.14 @ 13:39:44 Player: Careless Squirrel Result: Destroyed by G-47 Trooper with Particle Gun Performance ------------- Evolutions (2) 1000 Regions Visited (4) 800 Robots Destroyed (34) 170 Value Destroyed (695) 695 Prototype IDs (1) 20 Alien Tech Used (0) 0 Bonus (7) 7 TOTAL SCORE: 2692 Bonus ------- Follower Combat Kills 7 Cogmind --------- Core Integrity 0/550 Matter 64/300 Energy 99/100 System Corruption 0% Temperature Cool (36) Movement Core (50) Location -8/Materials Parts ------- > --- POWER (2) -------- (None) > --- PROPULSION (4) --- (None) > --- UTILITY (2) ------ (None) > --- WEAPON (3) ------- Light Assault Rifle > --- INVENTORY (5) ---- (None) Peak State ------------ > --- POWER ------------ Light Ion Engine Light Ion Engine > --- PROPULSION ------- Light Treads Light Treads Aluminum Leg Aluminum Leg > --- UTILITY ---------- Small Storage Unit > --- WEAPON ----------- Minigun Flak Cannon Grenade Launcher > --- INVENTORY -------- Light Ion Engine Medium Laser Flak Cannon [Rating: 14] Favorites ----------- Power Light Ion Engine Engine Light Ion Engine Propulsion Aluminum Leg Treads Light Treads Leg Aluminum Leg Utility Small Storage Unit Storage Small Storage Unit Weapon Assault Rifle Energy Gun Medium Laser Ballistic Gun Assault Rifle Ballistic Cannon Flak Cannon Launcher Grenade Launcher Build | -11 -10 -10 -9 -8 ------- Run | Yrd Mat Min Mat Mat Slots Evolved 4 | . . . 2 2 Power 1 | . . . . 1 Propulsion 2 | . . . 2 . Utility . | . . . . . Weapon 1 | . . . . 1 Parts Attached 25 | 6 1 4 9 5 Power 4 | 1 . 1 . 2 Engine 4 | 1 . 1 . 2 Core . | . . . . . Reactor . | . . . . . Propulsion 7 | 2 . 1 4 . Treads 2 | . . . 2 . Leg 5 | 2 . 1 2 . Wheel . | . . . . . Hover . | . . . . . Flight . | . . . . . Utility 2 | 1 1 . . . Device . | . . . . . Storage 2 | 1 1 . . . Processor . | . . . . . Hackware . | . . . . . Protection . | . . . . . Artifact . | . . . . . Weapon 12 | 2 . 2 5 3 Energy Gun 2 | . . . . 2 Energy Cannon . | . . . . . Ballistic Gun 6 | 2 . 2 1 1 Ballistic Cannon 2 | . . . 2 . Launcher 2 | . . . 2 . Special Weapon . | . . . . . Impact Weapon . | . . . . . Slashing Weapon . | . . . . . Piercing Weapon . | . . . . . Special Melee Weapon . | . . . . . Unidentified Prototypes 1 | . . . . 1 Parts Lost 21 | . . 5 3 13 Power 4 | . . 1 . 3 Propulsion 7 | . . 2 1 4 Utility 2 | . . . 1 1 Weapon 8 | . . 2 1 5 Highest Loss Streak 6 | . . 3 2 6 To Critical Strikes . | . . . . . Average Backups 4 | 2 4 5 3 2 Power 1 | . 1 1 1 . Propulsion 1 | 1 2 2 . . Utility . | . . . . . Weapon 1 | . 1 1 2 1 Tool/Special . | . . . . . Unused Backups 1 | . . . 1 . Power . | . . . . . Propulsion . | . . . . . Utility . | . . . . . Weapon 1 | . . . 1 . Tool/Special . | . . . . . Average Slot Usage (%) 79 | . 96 96 84 42 Engine 11 | . 14 13 11 7 Treads 7 | . . . 21 3 Leg 18 | . 28 26 17 4 Storage 18 | . 24 28 13 8 Ballistic Gun 14 | . 28 27 1 7 Ballistic Cannon 4 | . . . 8 6 Launcher 3 | . . . 10 1 Peak Build Rating 14 | 6 7 7 12 14 Average Rating 7 | 4 6 6 9 7 On Entrance 6 | . 6 7 5 12 Avg Prop Armor Cover (%) 15 | . . . 15 12 Naked Turns . | . . . . . Heaviest Build 23 | 12 14 14 22 23 Greatest Support 40 | 20 20 20 40 20 Greatest Overweight (x) 5 | . . 1 1 5 Average Overweight (x) . | . . . . 2 Largest Inventory Capacity 8 | 8 8 8 8 8 Average Capacity 7 | 6 8 8 8 7 Most Carried 7 | 5 5 7 6 4 Average Carried 4 | 2 4 5 3 2 Final Capacity 8 | 8 8 8 8 5 Final Carried 5 | 4 5 4 5 . Class Distribution -------------------- 90% | Mutant 9% | Gunner Dominant Class ---------------- Mutant | -10/Materials Mutant | -10/Mines Mutant | -9/Materials Mutant | -8/Materials Resources | -11 -10 -10 -9 -8 ----------- Run | Yrd Mat Min Mat Mat Matter Collected 707 | 223 . 236 159 89 Remotely . | . . . . . Salvage Created 567 | . 32 164 238 133 Parts 55 | . 1 11 26 17 Haulers Intercepted . | . . . . . Recyclers Shooed . | . . . . . Parts Field Recycled . | . . . . . Retrieved Matter . | . . . . . Parts Self-Destructed . | . . . . . Prevented . | . . . . . Parts Restored . | . . . . . Kills | -11 -10 -10 -9 -8 ------- Run | Yrd Mat Min Mat Mat Combat Hostiles Destroyed 28 | . 1 9 11 7 Melee 1 | . . . . 1 Guns 15 | . 1 9 . 5 Cannons 8 | . . . 7 1 AOE 4 | . . . 4 . Classes Destroyed 5 | . 1 1 3 . Worker 4 | . . . 3 1 Watcher 2 | . . . 2 . Swarmer 17 | . . 8 4 5 Grunt 8 | . 1 1 4 2 Sentry 3 | . . . 3 . Best Kill Streak 7 | . 1 3 7 2 Combat Bots Only 7 | . 1 3 7 2 Max Kills in Single Turn 2 | . 1 1 2 1 Gunslinging . | . . . . . Exploded 2 | . . . 2 . Melee 1 | . . . . 1 Uniques/NPCs Destroyed . | . . . . . Combat | -11 -10 -10 -9 -8 -------- Run | Yrd Mat Min Mat Mat Hostile Shots Fired 374 | . 42 70 49 213 Missed 104 | . 13 17 16 58 Hits 270 | . 29 53 33 155 Projectile 270 | . 29 53 33 155 Critical Strikes 3 | . . . . 3 Damage Taken 2831 | . 324 478 500 1529 Core 798 | . 54 131 56 557 Absorbed by Shields . | . . . . . Core Remaining (%) 70 | 100 . 26 86 . Volleys Fired 102 | . 15 32 25 30 Largest 3 | . 2 2 2 3 Hottest 120 | . 40 40 74 120 Shots Fired 183 | . 30 59 42 52 Gun 129 | . 30 59 . 40 Cannon 35 | . . . 23 12 Launcher 19 | . . . 19 . Special . | . . . . . Kinetic 151 | . 30 59 23 39 Thermal 12 | . . . . 12 Explosive 19 | . . . 19 . Electromagnetic 1 | . . . . 1 Robot Hit Streak 11 | . 8 11 11 6 Robot Miss Streak 8 | . 4 2 8 7 Penetration Max . | . . . . . Secondary Targets 3 | . . 2 . 1 Max Gunslinging Chain 1 | . . 1 . 1 Shots Hit Robots 113 | . 18 34 32 29 Core Hits 80 | . 5 13 39 23 Critical Kills 1 | . . 1 . . Critical Parts Destroyed . | . . . . . Critical Strikes 2 | . . 1 . 1 Burn 1 | . . . . 1 Destroy 1 | . . 1 . . Melee Attacks . | . . . . . Impact . | . . . . . Slashing . | . . . . . Piercing . | . . . . . Sneak Attacks . | . . . . . Combat Hostiles . | . . . . . Follow-up Attacks . | . . . . . Damage Inflicted 1940 | . 231 355 870 484 Guns 869 | . 223 344 . 302 Cannons 400 | . . . 256 144 Explosions 610 | . . . 610 . Melee . | . . . . . Ramming 61 | . 8 11 4 38 Kinetic 1155 | . 223 344 256 332 Thermal 114 | . . . . 114 Explosive 610 | . . . 610 . Electromagnetic . | . . . . . Impact . | . . . . . Slashing . | . . . . . Piercing . | . . . . . Highest Corruption . | . . . . . Average Corruption . | . . . . . Corruption Purged . | . . . . . Corruption Blocked . | . . . . . Overload Shots . | . . . . . Overflow Damage 10 | . . . 10 . Projectiles . | . . . . . Explosions 10 | . . . 10 . Melee . | . . . . . Knockbacks 13 | . . . 4 9 Impact . | . . . . . Kinetic 13 | . . . 4 9 Secondary . | . . . . . Self-Inflicted Damage 125 | . . . 122 3 Shots 8 | . . . 8 . Rammed 14 | . . . . 14 Targets Rammed 34 | . 5 3 1 25 Kicked 20 | . 5 3 1 11 Crushed . | . . . . . Highest Temperature 163 | . 5 36 30 163 Average Temperature 32 | . 5 12 7 56 Received Heat Transfer 714 | . 174 81 108 351 Siege Activations . | . . . . . Martial Activations . | . . . . . Shielding Activations . | . . . . . Robots Disrupted . | . . . . . Combat Hostiles . | . . . . . Robots Corrupted . | . . . . . Combat Hostiles . | . . . . . Parts Fried . | . . . . . Impact Corruptions . | . . . . . Robots Melted . | . . . . . Combat Hostiles . | . . . . . Parts Melted . | . . . . . Heat Transferred 407 | . . . . 407 Parts Sabotaged . | . . . . . Parts Stolen . | . . . . . Parts Stripped . | . . . . . Power Chain Reactions . | . . . . . Alert | -11 -10 -10 -9 -8 ------- Run | Yrd Mat Min Mat Mat Maximum Alert Level 1 | . . . 1 . Low Security (%) 95 | 100 100 100 84 100 Level 1 4 | . . . 15 . Level 2 . | . . . . . Level 3 . | . . . . . Level 4 . | . . . . . Level 5 . | . . . . . High Security . | . . . . . Max Security . | . . . . . Peak Influence 223 | . 30 78 223 81 Initial 81 | . . 3 26 81 Average 48 | . 6 31 117 24 Influence Increases 876 | . 30 271 410 165 Destroy 0b10 Robot/C 580 | . 20 200 220 140 Destroy 0b10 Robot/NC 30 | . . . 25 5 Destroy Leader 124 | . 10 40 54 20 Allied During Kill 1 | . . 1 . . Disable Machine 45 | . . 15 30 . Destroy Structure 66 | . . . 66 . Lose Combat Pursuer 30 | . . 15 15 . Influence Decreases 876 | . 20 212 285 359 Entered New Map 163 | . . 7 43 113 Time Decay 561 | . 20 185 206 150 Lost Part 146 | . . 20 30 96 Lost Ally 6 | . . . 6 . Squads Dispatched 2 | . 1 . . 1 Investigation 2 | . 1 . . 1 Extermination . | . . . . . Reinforcement . | . . . . . Assault . | . . . . . Garrison . | . . . . . Intercept . | . . . . . Searches Triggered . | . . . . . Construction Impeded . | . . . . . Haulers Reinforced . | . . . . . Active Scanning Responses . | . . . . . Cargo Convoy Interrupts . | . . . . . Stealth | -11 -10 -10 -9 -8 --------- Run | Yrd Mat Min Mat Mat Distress Signals 2 | . . . . 2 Communications Jammed . | . . . . . Distress Signals . | . . . . . Times Spotted 54 | . 7 15 16 16 Peak Tracking Total 7 | . 4 3 7 7 Tactical Retreats 2 | . . 1 1 . Traps | -11 -10 -10 -9 -8 ------- Run | Yrd Mat Min Mat Mat Traps Triggered 2 | . 1 . . 1 Indirectly . | . . . . . Trap Hack Attempts . | . . . . . Triggered . | . . . . . Disarmed . | . . . . . Reprogrammed . | . . . . . Reused . | . . . . . Traps Extracted . | . . . . . Installed . | . . . . . Triggered . | . . . . . Machines | -11 -10 -10 -9 -8 ---------- Run | Yrd Mat Min Mat Mat Machines Disabled 3 | . . 1 2 . Max in Single Turn 1 | . . 1 1 . Machines Repaired . | . . . . . Machines Dismantled . | . . . . . Machines Sabotaged . | . . . . . Overloaded Fab Kills . | . . . . . Hacking | -11 -10 -10 -9 -8 --------- Run | Yrd Mat Min Mat Mat Machines Accessed . | . . . . . Terminals . | . . . . . Fabricators . | . . . . . Repair Stations . | . . . . . Recycling Units . | . . . . . Scanalyzers . | . . . . . Garrison Access . | . . . . . Total Hacks . | . . . . . Successful . | . . . . . Failed . | . . . . . Catastrophic . | . . . . . Database Lockouts . | . . . . . Manual . | . . . . . Terminals . | . . . . . Fabricators . | . . . . . Repair Stations . | . . . . . Recycling Units . | . . . . . Scanalyzers . | . . . . . Garrison Access . | . . . . . Terminal Hacks . | . . . . . Fabricator Hacks . | . . . . . Repair Station Hacks . | . . . . . Recycling Unit Hacks . | . . . . . Scanalyzer . | . . . . . Garrison Access Hacks . | . . . . . Unauthorized Hacks . | . . . . . Terminals . | . . . . . Fabricators . | . . . . . Repair Stations . | . . . . . Recycling Units . | . . . . . Scanalyzers . | . . . . . Garrison Access . | . . . . . Data Cores Recovered . | . . . . . Used . | . . . . . Hacking Detections . | . . . . . Full Trace Events . | . . . . . Feedback Events . | . . . . . Feedback Blocked . | . . . . . Robot Schematics Acquired . | . . . . . Robots Built . | . . . . . Authchips . | . . . . . Time . | . . . . . Total Robot Build Rating . | . . . . . Part Schematics Acquired . | . . . . . Parts Built . | . . . . . Authchips . | . . . . . Time . | . . . . . Total Part Build Rating . | . . . . . Part Studies Acquired . | . . . . . Parts Repaired . | . . . . . Time . | . . . . . Parts Recycled . | . . . . . Recycled Matter . | . . . . . Retrieved Matter . | . . . . . Retrieved Components . | . . . . . Parts Scanalyzed . | . . . . . Part Schematics Acquired . | . . . . . Parts Damaged . | . . . . . Bothacking | -11 -10 -10 -9 -8 ------------ Run | Yrd Mat Min Mat Mat Used RIF Installer . | . . . . . Robots Hacked . | . . . . . Non-combat . | . . . . . Combat . | . . . . . Robot Hacks Applied . | . . . . . Relay Couplers Released . | . . . . . Fabnet Peak Effective % . | . . . . . Robots Rewired . | . . . . . Allies Hacked . | . . . . . Hacks Repelled . | . . . . . Allies | -11 -10 -10 -9 -8 -------- Run | Yrd Mat Min Mat Mat Total Allies 1 | . . 1 . . Largest Group 1 | . . 1 1 . Highest-Rated Group 31 | . . 31 31 . Highest-Rated Ally 31 | . . 31 31 . Total Orders . | . . . . . Ally Attacks 6 | . . 3 3 . Total Damage 85 | . . 42 43 . Kills 1 | . . 1 . . Allies Corrupted . | . . . . . Allies Melted . | . . . . . Intel | -11 -10 -10 -9 -8 ------- Run | Yrd Mat Min Mat Mat Active Infowar (turns) . | . . . . . Robot Analysis Total . | . . . . . Derelict Logs Recovered 1 | . . 1 . . Drone Launches . | . . . . . Drone Recoveries . | . . . . . Exploration | -11 -10 -10 -9 -8 ------------- Run | Yrd Mat Min Mat Mat Turns Passed 1556 | 85 170 509 428 364 Spaces Moved 809 | 61 97 340 200 111 Core 79 | 5 . . . 74 Treads 50 | . . . 50 . Legs 680 | 56 97 340 150 37 Wheels . | . . . . . Hover . | . . . . . Flight . | . . . . . Fastest Speed 50 | 50 120 120 120 50 Average Speed 144 | 114 120 121 167 214 Slowest Speed 300 | 120 120 190 190 300 Overloaded Moves . | . . . . . Propulsion Burnouts . | . . . . . Robots Hopped . | . . . . . Potential Cave-ins . | . . . . . Cave-ins Triggered . | . . . . . Exploration Rate (%) 26 | 4 21 73 25 8 Regions Visited 4 Branch Regions 1 Pre-discovered Areas 1 | . . . 1 . Known Exits Taken . | . . . . . Unknown Exits Taken 4 | 1 1 1 1 . Scrap Searched . | . . . . . Spaces Dug . | . . . . . Terrain Destroyed 83 | . . . 83 . Melee . | . . . . . Projectile . | . . . . . AOE 83 | . . . 83 . Terrain Rammed . | . . . . . Walls Destroyed . | . . . . . Machines Disabled . | . . . . . Actions | -11 -10 -10 -9 -8 --------- Run | Yrd Mat Min Mat Mat Total 1008 | 76 119 384 253 176 Wait 4 | . . . 4 . Move 805 | 60 96 339 199 111 Hop . | . . . . . Pick Up 26 | 10 2 3 9 2 Fast Attach . | . . . . . Attach 29 | 6 1 5 10 7 Detach 4 | . . 1 3 . Swap . | . . . . . Drop 4 | . . 1 2 1 Fire 102 | . 15 32 25 30 Melee . | . . . . . Ram 14 | . . . . 14 Kick 20 | . 5 3 1 11 Crush . | . . . . . Escape Stasis . | . . . . . Rewire . | . . . . . Trap . | . . . . . Miscellaneous . | . . . . . Route ------- -11/Scrapyard -10/Materials -10/Mines (discovered 2 exits: [*Mat x2]) -9/Materials -8/Materials History --------- Turn | Location | Event 3 | -11/Scrapyard | Discovered new exit (range 15) 86 | -11/Scrapyard | Entered Materials 192 | -10/Materials | Discovered new exit (range 16) 256 | -10/Materials | Entered Mines 285 | -10/Mines | Met a Derelict bent on vengeance 313 | -10/Mines | Build established: Mutant 691 | -10/Mines | Core integrity fell below 50% 720 | -10/Mines | Lost 3 parts (1p1n1w) 749 | -10/Mines | Discovered new exit (range 8) 752 | -10/Mines | Escorted by a lone wolf Derelict 756 | -10/Mines | Discovered new exit (range 8) 765 | -10/Mines | Entered Materials 765 | -9/Materials | Accompanied by 1 ally 765 | -9/Materials | Evolved 2 slots: Propulsion x2 772 | -9/Materials | Learned location of Storage (-7) 877 | -9/Materials | Destroyed 7 combat bots 1175 | -9/Materials | Discovered new exit (range 7) 1193 | -9/Materials | Entered another Materials area 1193 | -8/Materials | Evolved 2 slots: Power x1, Weapon x1 1301 | -8/Materials | Lost 6 parts (1p4n1w) 1421 | -8/Materials | Lost 3 parts (1p2w) 1513 | -8/Materials | Core integrity fell below 50% 1549 | -8/Materials | Core integrity fell below 20% 1557 | -8/Materials | Destroyed by G-47 Trooper with Particle Gun Last Messages --------------- 01503_ ALERT: Alarm triggered, dispatching investigation squad. 01514_ Critical hit (Burn: +37). 01516_ G-47 Trooper destroyed. 01516_ Switching to secondary target: G-50 Soldier. 01520_ Critical hit (Burn: +37). 01523_ U-05 Engineer lays Concrete. 01524_ U-05 Engineer destroyed. 01530_ Acquired 27 matter. 01534_ W-25 Informer sends out distress signal. 01535_ G-47 Trooper destroyed. 01538_ Hvy. EM Shotgun destroyed. 01538_ W-25 Informer suffers critical hit (Burn). 01545_ Sml. Storage Unit destroyed. 01548_ Lgt. Ion Engine destroyed. 01551_ Med. Laser destroyed. 01551_ G-47 Trooper suffers critical hit (Burn). 01557_ Critical hit (Burn: +37). Map ----- +----------------------------------------------------+ | ?????????????????????????????????????????????????? | | ?????????????????????????????????????????????????? | | ?????????????????????????????????????????????????? | | ?????????????????????????????????????????????????? | | ?????????????????????????????????????????????????? | | ?????????????????????????????????????????????????? | | ?????????????????????????????????????????????????? | | ?????????????????????????????????????????????????? | | ?????????????????????????????????????????????????? | | ?????????????????????????????????????????????????? | | ????????????????????????? ?????????????????????? | | ????????????????????????# #????????????????????? | | ????????????????????????# #????????????????????? | | ????????????????????????# +????????????????????? | | ????????????????????????#%*!#????????????????????? | | ????????????????????????#!%=#????????????????????? | | ????????????????????????#[*=#????????????????????? | | ??????????????????###???# #????????????????????? | | ??????????????????? ??# #????????????????????? | | ???????????????????? ?# g #????????????????????? | | ?????????????????????] # g #????????????????????? | | ?????????????????????? #gw #????????????????????? | | ??????????????????????? + +????????????????????? | | ????????????????????????#Yg #????????????????????? | | ????????????????????????#! #????????????????????? | | ????????????????????????#@= #????????????????????? | | ????????????????????????#* ##############???????? | | ????????????????????????# # = #???????? | | ????????????????????????# # !#???????? | | ????????????????????????# + = = [ #???????? | | ????????????????????????# # [ * #???????? | | ????????????????????????# r# = ] #???????? | | ????????????????????????# ###################### | | ????????????????????????# [* # | | ????????????????????????# # | | ????????????????????????# = [ # | | ????????????????????????################+##### # | | ???????????????????????????????????# ! # # | | ???????????????????????????????????# # # | | ???????????????????????????????????# """ # # | | ???????????????????????????????????#""""" ! # | | ???????????????????????????????????#""""" # | | ???????????????????????????????????#""""" # | | ???????????????????????????????????# """ ! ##### | | ???????????????????????????????????# #???? | | ???????????????????????????????????###########???? | | ?????????????????????????????????????????????????? | | ?????????????????????????????????????????????????? | | | | | +----------------------------------------------------+ Best States ------------- Heat Dissipation 31 Energy Generation 15 Energy Capacity 150 Matter Stores 279 Matter Capacity 400 Sight Range 16 Terrain Scan Density 10 Evasion (%) 55 Recoil Reduction 2 Item Schematics ----------------- None Robot Schematics ------------------ None Fabricated ------------ Nothing Repaired ---------- Nothing Studied --------- None Alien Tech Used ----------------- None Achievements -------------- Fist Fight More Dakka Please Challenges ------------ None Game ------ Seed WeaponsExplosiveInjector Manual? 0 Play Time 00:16:53 Cumulative 5.9 hours Start 2025.12.14 @ 13:25:14 End 2025.12.14 @ 13:39:44 Sessions 1 Manual Loads 0 Difficulty Rogue Special Mode None Game No. 17 Rogue 17 Adventurer 0 Explorer 0 Win Type - Total 0 Types 0/0/0/0/0/0/0/0/0/0 Lore% 2 Gallery% 12 Achievement% 10 Wizard Run 0 Options --------- Layout 1 ASCII 0 Keyboard 0 Movement Mouse Keybinds 0 Fullscreen 1 Font 24/Smallcaps Map View 50x35 Zoom Use 0% Tactical HUD 1 Map Filters NONE Filters NONE Steam 1 RUN: 6eb85cfd-4dc1-46e7-8236-afa8c6b3790a